Workbook

Sheet Inicio (hidden)
E3: FORMATOS CONTABLES
F8: DATOS ENCABEZADO - ESTADOS FINANCIEROS
F19: Estos Datos Se Diligencian Con El Fin De Que Aparezcan En Los Formatos Que Se Generaran Al Dar Click En El Boton " Generar Contabilizacion" Ubicado En La Cinta De Opciones ( Pestaña: " Excel Contable" )
F23: Para Generar Los Formatos:
F24: 1. Diligencie Las Hojas B_inicial Y Movimientos
F25: 2. Click En El Boton Generar Contabilizacion

Sheet B_Inicial (hidden)
A1: Fecha | B1: Codigo | C1: Cuenta | D1: Debito | E1: Credito | F1: Concepto ( Opcional )
A2: 2014-02-01 | B2: 1110 | C2: MONEDA NACIONAL | D2: 9500000 | E2: 0
A3: 2014-02-01 | B3: 1305 | C3: NACIONALES | D3: 18650500 | E3: 0
A4: 2014-02-01 | B4: 1355 | C4: RENTENCION EN LA FUENTE | D4: 2580200 | E4: 0
A5: 2014-02-01 | B5: 1504 | C5: TERRENOS URBANOS | D5: 12542600 | E5: 0
A6: 2014-02-01 | B6: 1516 | C6: EDIFICIOS | D6: 45000000 | E6: 0
A7: 2014-02-01 | B7: 1524 | C7: MUEBLES Y ENSERES | D7: 18600000 | E7: 0
A8: 2014-02-01 | B8: 1540 | C8: AUTOS Y CAMIONETAS | D8: 24000000 | E8: 0
A9: 2014-02-01 | B9: 2105 | C9: PROVEDORES | D9: 0 | E9: 45000000
A10: 2014-02-01 | B10: 2205 | C10: NACIONALES | D10: 0 | E10: 14865300
A11: 2014-02-01 | B11: 2365 | C11: COMPRAS | D11: 0 | E11: 895400
A12: 2014-02-01 | B12: 2380 | C12: ACREEDORES VARIOS | D12: 0 | E12: 8100500
A13: 2014-02-01 | B13: 2408 | C13: IVA | D13: 0 | E13: 5820500
A14: 2014-02-01 | B14: 3115 | C14: APORTES SOCIALES | D14: 0 | E14: 66052000
A15: 2014-02-01 | B15: 3710 | C15: PERDIDA ACUMULADA | D15: 9860400 | E15: 0

Sheet Movimientos (hidden)
A1: Fecha | B1: Codigo | C1: Cuenta | D1: Debito | E1: Credito | F1: Concepto ( Opcional ) | G1: 123982715
A2: 2014-02-01 | B2: 1435 | C2: MERCANCIAS | D2: 6952400 | E2: 0 | F2: compra de mercancias
A3: 2014-02-01 | B3: 2408 | C3: IVA | D3: 1112384 | E3: 0
A4: 2014-02-01 | B4: 2365 | C4: RETEFUENTE | D4: 0 | E4: 243334
A5: 2014-02-01 | B5: 2205 | C5: PROVEEDORES | D5: 0 | E5: 7821450
A7: 2014-02-02 | B7: 1705 | C7: COSTOS PAGADOS ANTICIPADO | D7: 5011200 | E7: 0
A8: 2014-02-02 | B8: 1110 | C8: BANCOS | D8: 0 | E8: 5011200 | F8: pago efectivo
A10: 2014-02-02 | B10: 5110 | C10: HONORARIOS | D10: 1580400 | E10: 0
A11: 2014-02-02 | B11: 2408 | C11: IMPUESTO A LAS VENTAS * PAGAR | D11: 126432 | E11: 0
A12: 2014-02-02 | B12: 2367 | C12: IMPUESTO VENTAS RETENIDO | D12: 0 | E12: 126432
A13: 2014-02-02 | B13: 2365 | C13: RETENCION HONORARIOS 10% | D13: 0 | E13: 158040
A14: 2014-02-02 | B14: 2335 | C14: COSTOS PRO PAGAR | D14: 0 | E14: 1422360
A16: 2014-02-03 | B16: 1305 | C16: DEUDORES | D16: 14063062 | E16: 0
A17: 2014-02-03 | B17: 1355 | C17: ANTICIPO | D17: 437518 | E17: 0
A18: 2014-02-03 | B18: 4135 | C18: COMERCIO >< | D18: 0 | E18: 12500500
A19: 2014-02-03 | B19: 2408 | C19: IMPUESTO A LAS VENTAS * PAGAR | D19: 0 | E19: 2000080
A21: 2014-02-04 | B21: 6135 | C21: COMERCIO >< | D21: 8125325 | E21: 0
A22: 2014-02-04 | B22: 1435 | C22: MERCANCIAS NO FABRICADAS | D22: 0 | E22: 8125325
A24: 2014-02-04 | B24: 1528 | C24: EQUIPO DE COMPUTO | D24: 15660000 | E24: 0
A25: 2014-02-04 | B25: 2365 | C25: RETEFUENTE | D25: 0 | E25: 472500
A26: 2014-02-04 | B26: 1110 | C26: BANCOS | D26: 0 | E26: 15187500
A28: 2014-02-05 | B28: 1710 | C28: CARGOS DIFERIDOS | D28: 1670400 | E28: 0
A29: 2014-02-05 | B29: 2365 | C29: RETEFUENTE | D29: 0 | E29: 50400
A30: 2014-02-06 | B30: 1110 | C30: BANCOS | D30: 0 | E30: 1620000
A32: 2014-02-07 | B32: 2205 | C32: PROVEEDORES NACIONALES | D32: 609750 | E32: 0
A33: 2014-02-07 | B33: 2365 | C33: RETE FUENTE | D33: 18970 | E33: 0
A34: 2014-02-07 | B34: 1435 | C34: DEVOLUCION MERCANCIAS | D34: 0 | E34: 542000
A35: 2014-02-07 | B35: 2408 | C35: IMPUESTO A LAS VENTAS | D35: 0 | E35: 86720
A37: 2014-02-07 | B37: 5145 | C37: MANTENIMIENTO Y REPARACIONES | D37: 650000 | E37: 0
A38: 2014-02-07 | B38: 2408 | C38: IMPUESTO A LAS VENTAS * PAGAR | D38: 104000 | E38: 0
A39: 2014-02-08 | B39: 2365 | C39: RETENCION EN LA FUENTE | D39: 0 | E39: 26000
A40: 2014-02-08 | B40: 1110 | C40: BANCOS | D40: 0 | E40: 728000
A42: 2014-02-09 | B42: 4175 | C42: DEVOLUCION VENTAS | D42: 540000 | E42: 0
A43: 2014-02-09 | B43: 2408 | C43: IVA | D43: 86400 | E43: 0
A44: 2014-02-09 | B44: 1355 | C44: ANTICIPO IMPUESTO | D44: 0 | E44: 18900
A45: 2014-02-09 | B45: 1305 | C45: CLIENTES | D45: 0 | E45: 607500
A47: 2014-02-10 | B47: 6135 | C47: COMERCIO >< | D47: 351000 | E47: 0
A48: 2014-02-10 | B48: 1435 | C48: MERCANCIAS NO FABRICADAS | D48: 0 | E48: 351000
A50: 2014-02-10 | B50: 2205 | C50: PROVEEDORES | D50: 2500000 | E50: 0
A51: 2014-02-10 | B51: 1110 | C51: BANCOS | D51: 0 | E51: 2500000
A53: 2014-02-10 | B53: 1105 | C53: CAJA | D53: 5400500 | E53: 0
A54: 2014-02-10 | B54: 1305 | C54: CLIENTES | D54: 0 | E54: 5400500
A56: 2014-02-10 | B56: 1110 | C56: BANCOS | D56: 5400500 | E56: 0
A57: 2014-02-10 | B57: 1105 | C57: CAJA | D57: 0 | E57: 5400500
A59: 2014-02-11 | B59: 5130 | C59: SEGUROS | D59: 250560 | E59: 0
A60: 2014-02-11 | B60: 1705 | C60: GASTOS PAGADOS * ANTICIPADO | D60: 0 | E60: 250560
A62: 2014-02-11 | B62: 5195 | C62: DIVERSOS | D62: 272000 | E62: 0
A63: 2014-02-11 | B63: 1710 | C63: CARGOS DIFERIDOS | D63: 0 | E63: 272000
A65: 2014-02-12 | B65: 5160 | C65: DEPRECIACION | D65: 1003500 | E65: 0
A66: 2014-02-12 | B66: 1592 | C66: DEPRECIACION ACUMULADA | D66: 0 | E66: 1003500
A68: 2014-02-12 | B68: 5305 | C68: GASTOS FINANCIEROS | D68: 750000 | E68: 0
A69: 2014-02-12 | B69: 2335 | C69: COSTOS Y GASTOS POR PAGAR | D69: 0 | E69: 750000
A71: 2014-02-03 | B71: 1305 | C71: DEUDORES | D71: 140630620 | E71: 0
A72: 2014-02-03 | B72: 1355 | C72: ANTICIPO | D72: 4375180 | E72: 0
A73: 2014-02-03 | B73: 4135 | C73: COMERCIO >< | D73: 0 | E73: 125005000
A74: 2014-02-03 | B74: 2408 | C74: IMPUESTO A LAS VENTAS * PAGAR | D74: 0 | E74: 20000800

Sheet Presentacion
D3: CONTABILIDAD | E3: PRESENTACION

Sheet Formatos (hidden)
A1: 1 | B1: EMPRESA PRUEBA 1 S.A. | F1: COMPROBANTE DE CONTABILIDAD | J1: =+COUNTA(B1:B45) -> 6
A2: =+A1+1 -> 2 | B2: 800.000.000 | L2: EMPRESA PRUEBA 1 S.A. | U2: EMPRESA PRUEBA 1 S.A. | AF2: EMPRESA PRUEBA 1 S.A. | AL2: EMPRESA PRUEBA 1 S.A.
A3: 3 | B3: CALLE 116# 456 -23 | L3: 800.000.000 | U3: 800.000.000 | AF3: 800.000.000 | AL3: 800.000.000
A4: 4 | B4: FECHA | C4: =+INDIRECT("C"&ROW()+4) -> 00:00:00 | H4: No. | I4: =+"C-00"&COUNTIF(INDIRECT(ADDRESS(ROW()-1,COLUMN()-7)&":"&ADDRESS(1,COLUMN()-7)),"FECHA")+1 -> C-001 | L4: DIARIO COLUMNARIO | U4: MAYOR Y BALANCES | AF4: LIBRO DE CAJA | AL4: Libro Auxiliar de: | AP4: 1105 | AQ4: =+VLOOKUP(AP4,INDIRECT("Depuracion_ctas!$D:$F"),3,0) -> CAJA
A5: 5 | B5: CODIGO | C5: CUENTAS | G5: PARCIALES | H5: DEBITOS | I5: CREDITOS
A6: 6 | B6: _ | L6: No. | M6: FECHA | N6: COMPROBANTE. | O6: No. | P6: 1105 CAJA | U6: No. | V6: CODIGO | W6: NOMBRE DE LAS CUENTAS | X6: SALDOS INICIALES | AD6: No. | AF6: Fecha | AG6: Concepto | AH6: Debito | AI6: Credito | AJ6: Saldo | AL6: FECHA | AO6: DETALLE | AP6: DEBE | AQ6: HABER | AR6: SALDO
A7: 7 | Z7: MOVIMIENTO | AB7: BALANCE | AL7: DD | AM7: MM | AN7: AA
A8: 8 | P8: DEBITO | Q8: CREDITO | X8: DEBITO | Y8: CREDITO | Z8: DEBITO | AA8: CREDITO | AB8: DEBITO | AC8: CREDITO
A9: 9 | L9: 1 | M9: FEBRERO | N9: COMPROBANTE DE APERTURA | O9: - | P9: 17100000 | U9: 1 | AD9: 1
A10: 10 | L10: 2 | M10: MARZO | N10: COMPROBANTE DE DIARIO | O10: 1 | P10: 36665000 | Q10: 50265000
A11: 11 | L11: 3
A12: 12 | L12: 4
A13: 13 | L13: 5
A14: 14 | L14: 6
A15: 15 | L15: 7
A16: 16 | L16: 8
A17: 17 | L17: 9
A18: 18 | L18: 10
A19: 19 | L19: 11
A20: 20 | L20: 12
A21: 21 | L21: 13
A22: 22 | L22: 14
A23: 23 | L23: 15
A24: 24 | L24: 16
A25: 25 | L25: 17
A26: 26 | L26: 18
A27: 27 | L27: 19
A28: 28 | L28: 20
A29: 29 | L29: 21
A30: 30 | L30: 22
A31: 31 | L31: 23
A32: 32 | L32: 24
A33: 33 | L33: 25
A34: 34 | L34: 26
A35: 35 | L35: 27
A36: 36 | L36: 28
A37: 37 | L37: 29
A38: 38 | L38: 30
A39: 39
A40: 40
A41: 41
A42: 42
A43: 43
A44: 44
A45: 45
A46: 46 | B46: =+CHOOSE(1,"","SUMAS IGUALES") ->  | H46: =++CHOOSE(1,"",SUBTOTAL(9,INDIRECT("M7:M"&ROW()-1))) ->  | I46: =+CHOOSE(1,"",SUBTOTAL(9,INDIRECT("N7:N"&ROW()-1))) -> 
A47: 47 | B47: PREPARADO | D47: REVISADO | F47: APROBADO | H47: CONTABILIZADO
A48: 48 | H48: AUXILIAR | I48: DIARIO
A49: 49
A50: 50
B52: =+INDIRECT("G"&1) -> 0 | F52: COMPROBANTE DE CONTABILIDAD
B53: =+INDIRECT("G"&2) -> 0
B54: _
B55: FECHA | C55: =+INDIRECT("C"&ROW()+4) -> 00:00:00 | H55: No. | I55: =+"C-00"&COUNTIF(INDIRECT(ADDRESS(ROW()-1,COLUMN()-7)&":"&ADDRESS(1,COLUMN()-7)),"FECHA") -> C-001
B56: CODIGO | C56: CUENTAS | G56: PARCIALES | H56: DEBITOS | I56: CREDITOS
B57: =+CHOOSE(1,"",IF(H57="","","SUMAS VIENEN")) ->  | H57: =+CHOOSE(1,""," "&ROUND(INDIRECT(ADDRESS(ROW()-11,COLUMN())),0)) ->  | I57: =+CHOOSE(1,""," "&ROUND(INDIRECT(ADDRESS(ROW()-11,COLUMN())),0)) -> 

Sheet Estado De Resultados (hidden)
C4: EMPRESA PRUEBA 1 S.A.
C5: Nit : 800.000.000
C6: ESTADO DE RESULTADOS PERIODO 2014
C8: Ingresos Operacionales
C9: 4135 | D9: COMERCIO >< | E9: 137505500
C10: Devoluciones Rebajas Y Descuentos
C11: 4175 | D11: DEVOLUCION VENTAS | E11: 540000
C12: Costo de ventas
C13: 6135 | D13: COMERCIO >< | E13: 8476325
C15: =+"=Utilidad Bruta En Ventas" -> =Utilidad Bruta En Ventas | E15: =+SUMAR_PYG(41,$E$1:E14,-2)-(2*SUMAR_PYG(4175,$E$1:E14,-2))-SUMAR_PYG(6,$E$1:E14,-2) -> 128489175
C17: Gastos:
C18: Gastos Operacionales De Administracion
C19: 5110 | D19: HONORARIOS | E19: 1580400
C20: 5130 | D20: SEGUROS | E20: 250560
C21: 5145 | D21: MANTENIMIENTO Y REPARACIONES | E21: 650000
C22: 5160 | D22: DEPRECIACION | E22: 1003500
C23: 5195 | D23: DIVERSOS | E23: 272000
C24: Total Gastos Operacionales De Administracion | E24: =+SUMAR_PYG(51,$E$1:E23,-2) -> 3756460
C26: Gastos Operacionales De Ventas
C27: Total Gastos Operacionales De Ventas | E27: =+SUMAR_PYG(52,$E$1:E26,-2) -> 0
C29: Total Gastos Operacionales | E29: =+SUMAR_PYG("Total Gastos Oper",$E$1:E28,-2) -> 3756460
C31: =+"=Utilidad Operacional" -> =Utilidad Operacional | E31: =+SUMAR_PYG("=Utilidad Bruta",$E$1:E30,-2)-SUMAR_PYG(5,$E$1:E30,-2) -> 124732715
C33: Ingresos No Operacionales
C34: Gastos No Operacionales
C35: 5305 | D35: GASTOS FINANCIEROS | E35: 750000
C37: =+"=Utilidad Neta Antes De Impuestos Y Reservas" -> =Utilidad Neta Antes De Impuestos Y Reservas | E37: =+SUMAR_PYG("=Utilidad Opera",$E$1:E36,-2)-SUMAR_PYG(53,$E$1:E36,-2)+SUMAR_PYG(42,$E$1:E36,-2) -> 123982715
C39: Impuesto Sobre La Renta
C41: =+"=Utilidad Liquida" -> =Utilidad Liquida | E41: =+SUMAR_PYG("=Utilidad Neta",$E$1:E40,-2)-SUMAR_PYG(54,$E$1:E40,-2) -> 123982715
C43: Reservas
C45: =+"=Utilidad Del Ejercicio" -> =Utilidad Del Ejercicio | E45: =+SUMAR_PYG("=Utilidad Liquida",$E$1:E44,-2)-SUMAR_PYG(33,$E$1:E44,-2) -> 123982715

Sheet Balance A.H. (hidden)
C5: EMPRESA PRUEBA 1 S.A.
C6: Nit : 800.000.000
C7: ANALISIS HORIZONTAL BALANCE GENERAL
C9: ACTIVO | E9: Año Actual | F9: Año Anterior | G9: Variacion Absoluta | H9: Variacion Relativa | J9: PASIVO | L9: Año Actual | M9: Año Anterior | N9: Variacion Absoluta | O9: Variacion Relativa
C11: Activo Corriente | J11: Pasivo Corriente
C12: 1105 | D12: CAJA | E12: 0 | F12: 0 | G12: =+E12-F12 -> 0 | H12: =+IF(TYPE(G12/F12)=16,0,G12/F12) -> 0 | J12: 2105 | K12: PROVEDORES | L12: 45000000 | M12: 45000000 | N12: =+L12-M12 -> 0 | O12: =+IF(TYPE(N12/M12)=16,0,N12/M12) -> 0
C13: 1110 | D13: MONEDA NACIONAL | E13: -10146200 | F13: 9500000 | G13: -19646200 | H13: -2.068021053 | J13: 2205 | K13: NACIONALES | L13: 19577000 | M13: 14865300 | N13: 4711700 | O13: 0.3169596308
C14: 1305 | D14: NACIONALES | E14: 167336182 | F14: 18650500 | G14: 148685682 | H14: 7.972208895 | J14: 2335 | K14: COSTOS PRO PAGAR | L14: 2172360 | M14: 0 | N14: 2172360 | O14: 0
C15: 1355 | D15: RENTENCION EN LA FUENTE | E15: 7373998 | F15: 2580200 | G15: 4793798 | H15: 1.857917216 | J15: 2365 | K15: COMPRAS | L15: 1826704 | M15: 895400 | N15: 931304 | O15: 1.04009828
C16: 1435 | D16: MERCANCIAS | E16: -2065925 | F16: 0 | G16: -2065925 | H16: 0 | J16: 2367 | K16: IMPUESTO VENTAS RETENIDO | L16: 126432 | M16: 0 | N16: 126432 | O16: 0
C17: Total Activo Corriente | E17: 162498055 | F17: 30730700 | G17: 131767355 | H17: 4.287808446 | J17: 2380 | K17: ACREEDORES VARIOS | L17: 8100500 | M17: 8100500 | N17: 0 | O17: 0
J18: 2408 | K18: IVA | L18: 26478884 | M18: 5820500 | N18: 20658384 | O18: 3.549245597
C19: Activo No Corriente | J19: Total Pasivo Corriente | L19: 103281880 | M19: 74681700 | N19: 28600180 | O19: 0.3829610199
C20: 1504 | D20: TERRENOS URBANOS | E20: 12542600 | F20: 12542600 | G20: =+E20-F20 -> 0 | H20: =+IF(TYPE(G20/F20)=16,0,G20/F20) -> 0
C21: 1516 | D21: EDIFICIOS | E21: 45000000 | F21: 45000000 | G21: 0 | H21: 0 | J21: Pasivo No Corriente
C22: 1524 | D22: MUEBLES Y ENSERES | E22: 18600000 | F22: 18600000 | G22: 0 | H22: 0 | J22: Total Pasivo No Corriente | L22: 0 | M22: 0 | N22: =+L22-M22 -> 0 | O22: =+IF(TYPE(N22/M22)=16,0,N22/M22) -> 0
C23: 1528 | D23: EQUIPO DE COMPUTO | E23: 15660000 | F23: 0 | G23: 15660000 | H23: 0
C24: 1540 | D24: AUTOS Y CAMIONETAS | E24: 24000000 | F24: 24000000 | G24: 0 | H24: 0 | J24: Total Pasivo | L24: 103281880 | M24: 74681700 | N24: =+L24-M24 -> 28600180 | O24: =+IF(TYPE(N24/M24)=16,0,N24/M24) -> 0.3829610199
C25: 1592 | D25: DEPRECIACION ACUMULADA | E25: -1003500 | F25: 0 | G25: -1003500 | H25: 0
C26: 1705 | D26: COSTOS PAGADOS ANTICIPADO | E26: 4760640 | F26: 0 | G26: 4760640 | H26: 0 | J26: Patrimonio
C27: 1710 | D27: CARGOS DIFERIDOS | E27: 1398400 | F27: 0 | G27: 1398400 | H27: 0 | J27: 3115 | K27: APORTES SOCIALES | L27: 66052000 | M27: 66052000 | N27: =+L27-M27 -> 0 | O27: =+IF(TYPE(N27/M27)=16,0,N27/M27) -> 0
C28: Total Activo No Corriente | E28: 120958140 | F28: 100142600 | G28: 20815540 | H28: 0.2078589931 | J28: 360505 | K28: Utilidad Del Ejercicio | L28: 123982715 | M28: 0 | N28: =+L28-M28 -> 123982715 | O28: =+IF(TYPE(N28/M28)=16,0,N28/M28) -> 0
J29: 3710 | K29: PERDIDA ACUMULADA | L29: -9860400 | M29: -9860400 | N29: =+L29-M29 -> 0 | O29: =+IF(TYPE(N29/M29)=16,0,N29/M29) -> 0
C30: Total Activo | E30: 283456195 | F30: 130873300 | G30: =+E30-F30 -> 152582895 | H30: =+IF(TYPE(G30/F30)=16,0,G30/F30) -> 1.165882537 | J30: Total Patrimonio | L30: 180174315 | M30: 56191600 | N30: =+L30-M30 -> 123982715 | O30: =+IF(TYPE(N30/M30)=16,0,N30/M30) -> 2.206427918
J32: Total Pasivo Mas Patrimonio | L32: 283456195 | M32: 130873300 | N32: =+L32-M32 -> 152582895 | O32: =+IF(TYPE(N32/M32)=16,0,N32/M32) -> 1.165882537

Sheet Balance A.V. (hidden)
C5: EMPRESA PRUEBA 1 S.A.
C6: Nit : 800.000.000
C7: ANALISIS VERTICAL BALANCE GENERAL
C9: ACTIVO | E9: Año Actual | F9: % De Participacion | H9: Año Anterior | I9: % De Participacion | K9: PASIVO | M9: Año Actual | N9: % De Participacion | P9: Año Anterior | Q9: % De Participacion
C11: Activo Corriente | K11: Pasivo Corriente
C12: 1105 | D12: CAJA | E12: 0 | F12: 0 | H12: 0 | I12: 0 | K12: 2105 | L12: PROVEDORES | M12: 45000000 | N12: 0.1587546887 | P12: 45000000 | Q12: 0.3438440079
C13: 1110 | D13: MONEDA NACIONAL | E13: -10146200 | F13: -0.03579459606 | H13: 9500000 | I13: 0.07258929056 | K13: 2205 | L13: NACIONALES | M13: 19577000 | N13: 0.06906534535 | P13: 14865300 | Q13: 0.1135854296
C14: 1305 | D14: NACIONALES | E14: 167336182 | F14: 0.5903422996 | H14: 18650500 | I14: 0.1425080593 | K14: 2335 | L14: COSTOS PRO PAGAR | M14: 2172360 | N14: 0.007663829679 | P14: 0 | Q14: 0
C15: 1355 | D15: RENTENCION EN LA FUENTE | E15: 7373998 | F15: 0.0260145946 | H15: 2580200 | I15: 0.01971525132 | K15: 2365 | L15: COMPRAS | M15: 1826704 | N15: 0.006444396109 | P15: 895400 | Q15: 0.00684173166
C16: 1435 | D16: MERCANCIAS | E16: -2065925 | F16: -0.007288339562 | H16: 0 | I16: 0 | K16: 2367 | L16: IMPUESTO VENTAS RETENIDO | M16: 126432 | N16: 0.0004460371734 | P16: 0 | Q16: 0
C17: Total Activo Corriente | E17: 162498055 | F17: 0.5732739586 | H17: 30730700 | I17: 0.2348126012 | K17: 2380 | L17: ACREEDORES VARIOS | M17: 8100500 | N17: 0.02857760791 | P17: 8100500 | Q17: 0.06189574191
K18: 2408 | L18: IVA | M18: 26478884 | N18: 0.09341437748 | P18: 5820500 | Q18: 0.04447431218
C19: Activo No Corriente | K19: Total Pasivo Corriente | M19: 103281880 | N19: 0.3643662824 | P19: 74681700 | Q19: 0.5706412232
C20: 1504 | D20: TERRENOS URBANOS | E20: 12542600 | F20: 0.04424881241 | H20: 12542600 | I20: 0.09583773008
C21: 1516 | D21: EDIFICIOS | E21: 45000000 | F21: 0.1587546887 | H21: 45000000 | I21: 0.3438440079 | K21: Pasivo No Corriente
C22: 1524 | D22: MUEBLES Y ENSERES | E22: 18600000 | F22: 0.06561860467 | H22: 18600000 | I22: 0.1421221899 | K22: Total Pasivo No Corriente | M22: 0 | N22: 0 | P22: 0 | Q22: 0
C23: 1528 | D23: EQUIPO DE COMPUTO | E23: 15660000 | F23: 0.05524663167 | H23: 0 | I23: 0
C24: 1540 | D24: AUTOS Y CAMIONETAS | E24: 24000000 | F24: 0.08466916731 | H24: 24000000 | I24: 0.1833834709 | K24: Total Pasivo | M24: 103281880 | N24: 0.3643662824 | P24: 74681700 | Q24: 0.5706412232
C25: 1592 | D25: DEPRECIACION ACUMULADA | E25: -1003500 | F25: -0.003540229558 | H25: 0 | I25: 0
C26: 1705 | D26: COSTOS PAGADOS ANTICIPADO | E26: 4760640 | F26: 0.01679497603 | H26: 0 | I26: 0 | K26: Patrimonio
C27: 1710 | D27: CARGOS DIFERIDOS | E27: 1398400 | F27: 0.004933390149 | H27: 0 | I27: 0 | K27: 3115 | L27: APORTES SOCIALES | M27: 66052000 | N27: 0.23302366 | P27: 66052000 | Q27: 0.5047018758
C28: Total Activo No Corriente | E28: 120958140 | F28: 0.4267260414 | H28: 100142600 | I28: 0.7651873988 | K28: 360505 | L28: Utilidad Del Ejercicio | M28: 123982715 | N28: 0.437396385 | P28: 0 | Q28: 0
K29: 3710 | L29: PERDIDA ACUMULADA | M29: -9860400 | N29: -0.03478632739 | P29: -9860400 | Q29: -0.07534309901
C30: Total Activo | E30: 283456195 | F30: 1 | H30: 130873300 | I30: 1 | K30: Total Patrimonio | M30: 180174315 | N30: 0.6356337176 | P30: 56191600 | Q30: 0.4293587768
K32: Total Pasivo Mas Patrimonio | M32: 283456195 | N32: 1 | P32: 130873300 | Q32: 1

Sheet Hoja De Trabajo (hidden)
B2: HOJA DE TRABAJO
B4: Codigo | C4: Cuenta | D4: Balance Inicial | F4: Movimientos | H4: Balance De Prueba | J4: Estado De Resultados | L4: Balance Final
D5: Debito | E5: Credito | F5: Debito | G5: Credito | H5: Debito | I5: Credito | J5: Debito | K5: Credito | L5: Debito | M5: Credito
B6: 1105 | C6: CAJA | D6: 0 | E6: 0 | F6: 5400500 | G6: 5400500 | H6: 0 | I6: 0 | J6: 0 | K6: 0 | L6: 0 | M6: 0
B7: 1110 | C7: MONEDA NACIONAL | D7: 9500000 | E7: 0 | F7: 5400500 | G7: 25046700 | H7: 0 | I7: 10146200 | J7: 0 | K7: 0 | L7: 0 | M7: 10146200
B8: 1305 | C8: NACIONALES | D8: 18650500 | E8: 0 | F8: 154693682 | G8: 6008000 | H8: 167336182 | I8: 0 | J8: 0 | K8: 0 | L8: 167336182 | M8: 0
B9: 1355 | C9: RENTENCION EN LA FUENTE | D9: 2580200 | E9: 0 | F9: 4812698 | G9: 18900 | H9: 7373998 | I9: 0 | J9: 0 | K9: 0 | L9: 7373998 | M9: 0
B10: 1435 | C10: MERCANCIAS | D10: 0 | E10: 0 | F10: 6952400 | G10: 9018325 | H10: 0 | I10: 2065925 | J10: 0 | K10: 0 | L10: 0 | M10: 2065925
B11: 1504 | C11: TERRENOS URBANOS | D11: 12542600 | E11: 0 | F11: 0 | G11: 0 | H11: 12542600 | I11: 0 | J11: 0 | K11: 0 | L11: 12542600 | M11: 0
B12: 1516 | C12: EDIFICIOS | D12: 45000000 | E12: 0 | F12: 0 | G12: 0 | H12: 45000000 | I12: 0 | J12: 0 | K12: 0 | L12: 45000000 | M12: 0
B13: 1524 | C13: MUEBLES Y ENSERES | D13: 18600000 | E13: 0 | F13: 0 | G13: 0 | H13: 18600000 | I13: 0 | J13: 0 | K13: 0 | L13: 18600000 | M13: 0
B14: 1528 | C14: EQUIPO DE COMPUTO | D14: 0 | E14: 0 | F14: 15660000 | G14: 0 | H14: 15660000 | I14: 0 | J14: 0 | K14: 0 | L14: 15660000 | M14: 0
B15: 1540 | C15: AUTOS Y CAMIONETAS | D15: 24000000 | E15: 0 | F15: 0 | G15: 0 | H15: 24000000 | I15: 0 | J15: 0 | K15: 0 | L15: 24000000 | M15: 0
B16: 1592 | C16: DEPRECIACION ACUMULADA | D16: 0 | E16: 0 | F16: 0 | G16: 1003500 | H16: 0 | I16: 1003500 | J16: 0 | K16: 0 | L16: 0 | M16: 1003500
B17: 1705 | C17: COSTOS PAGADOS ANTICIPADO | D17: 0 | E17: 0 | F17: 5011200 | G17: 250560 | H17: 4760640 | I17: 0 | J17: 0 | K17: 0 | L17: 4760640 | M17: 0
B18: 1710 | C18: CARGOS DIFERIDOS | D18: 0 | E18: 0 | F18: 1670400 | G18: 272000 | H18: 1398400 | I18: 0 | J18: 0 | K18: 0 | L18: 1398400 | M18: 0
B19: 2105 | C19: PROVEDORES | D19: 0 | E19: 45000000 | F19: 0 | G19: 0 | H19: 0 | I19: 45000000 | J19: 0 | K19: 0 | L19: 0 | M19: 45000000
B20: 2205 | C20: NACIONALES | D20: 0 | E20: 14865300 | F20: 3109750 | G20: 7821450 | H20: 0 | I20: 19577000 | J20: 0 | K20: 0 | L20: 0 | M20: 19577000
B21: 2335 | C21: COSTOS PRO PAGAR | D21: 0 | E21: 0 | F21: 0 | G21: 2172360 | H21: 0 | I21: 2172360 | J21: 0 | K21: 0 | L21: 0 | M21: 2172360
B22: 2365 | C22: COMPRAS | D22: 0 | E22: 895400 | F22: 18970 | G22: 950274 | H22: 0 | I22: 1826704 | J22: 0 | K22: 0 | L22: 0 | M22: 1826704
B23: 2367 | C23: IMPUESTO VENTAS RETENIDO | D23: 0 | E23: 0 | F23: 0 | G23: 126432 | H23: 0 | I23: 126432 | J23: 0 | K23: 0 | L23: 0 | M23: 126432
B24: 2380 | C24: ACREEDORES VARIOS | D24: 0 | E24: 8100500 | F24: 0 | G24: 0 | H24: 0 | I24: 8100500 | J24: 0 | K24: 0 | L24: 0 | M24: 8100500
B25: 2408 | C25: IVA | D25: 0 | E25: 5820500 | F25: 1429216 | G25: 22087600 | H25: 0 | I25: 26478884 | J25: 0 | K25: 0 | L25: 0 | M25: 26478884
B26: 3115 | C26: APORTES SOCIALES | D26: 0 | E26: 66052000 | F26: 0 | G26: 0 | H26: 0 | I26: 66052000 | J26: 0 | K26: 0 | L26: 0 | M26: 66052000
B27: 360505 | C27: Utilidad Del Ejercicio | D27: 0 | E27: 0 | F27: 0 | G27: 0 | H27: 0 | I27: 0 | J27: 0 | K27: 0 | L27: 0 | M27: 123982715
B28: 3710 | C28: PERDIDA ACUMULADA | D28: 9860400 | E28: 0 | F28: 0 | G28: 0 | H28: 9860400 | I28: 0 | J28: 0 | K28: 0 | L28: 9860400 | M28: 0
B29: 4135 | C29: COMERCIO >< | D29: 0 | E29: 0 | F29: 0 | G29: 137505500 | H29: 0 | I29: 137505500 | J29: 0 | K29: 137505500 | L29: 0 | M29: 0
B30: 4175 | C30: DEVOLUCION VENTAS | D30: 0 | E30: 0 | F30: 540000 | G30: 0 | H30: 540000 | I30: 0 | J30: 540000 | K30: 0 | L30: 0 | M30: 0
B31: 5110 | C31: HONORARIOS | D31: 0 | E31: 0 | F31: 1580400 | G31: 0 | H31: 1580400 | I31: 0 | J31: 1580400 | K31: 0 | L31: 0 | M31: 0
B32: 5130 | C32: SEGUROS | D32: 0 | E32: 0 | F32: 250560 | G32: 0 | H32: 250560 | I32: 0 | J32: 250560 | K32: 0 | L32: 0 | M32: 0
B33: 5145 | C33: MANTENIMIENTO Y REPARACIONES | D33: 0 | E33: 0 | F33: 650000 | G33: 0 | H33: 650000 | I33: 0 | J33: 650000 | K33: 0 | L33: 0 | M33: 0
B34: 5160 | C34: DEPRECIACION | D34: 0 | E34: 0 | F34: 1003500 | G34: 0 | H34: 1003500 | I34: 0 | J34: 1003500 | K34: 0 | L34: 0 | M34: 0
B35: 5195 | C35: DIVERSOS | D35: 0 | E35: 0 | F35: 272000 | G35: 0 | H35: 272000 | I35: 0 | J35: 272000 | K35: 0 | L35: 0 | M35: 0
B36: 5305 | C36: GASTOS FINANCIEROS | D36: 0 | E36: 0 | F36: 750000 | G36: 0 | H36: 750000 | I36: 0 | J36: 750000 | K36: 0 | L36: 0 | M36: 0
B37: 590505 | C37: Ganacias Y Perdidas | D37: 0 | E37: 0 | F37: 0 | G37: 0 | H37: 0 | I37: 0 | J37: 123982715 | K37: 0 | L37: 0 | M37: 0
B38: 6135 | C38: COMERCIO >< | D38: 0 | E38: 0 | F38: 8476325 | G38: 0 | H38: 8476325 | I38: 0 | J38: 8476325 | K38: 0 | L38: 0 | M38: 0
B39: TOTAL | D39: =SUM(D6:D38) -> 140733700 | E39: 140733700 | F39: 217682101 | G39: 217682101 | H39: 320055005 | I39: 320055005 | J39: 137505500 | K39: 137505500 | L39: 306532220 | M39: 306532220

Sheet Depuracion_ctas (hidden)
B1: A 1 Digito | C1: A 2 Digitos | D1: A 4 Digitos | E1: Codigo | F1: Cuenta | G1: Debito | H1: Credito | I1: SALDO | J1: 590505 | K1: Ganacias Y Perdidas | L1: 0 | M1: 123982715 | N1: -136965500
B2: 1 | C2: 11 | D2: 1105 | E2: 1105 | F2: CAJA | G2: 5400500 | H2: 5400500 | I2: =+G2-H2 -> 0 | J2: 360505 | K2: Utilidad Del Ejercicio | L2: 0 | M2: 123982715 | N2: 12982785
B3: 1 | C3: 11 | D3: 1110 | E3: 1110 | F3: MONEDA NACIONAL | G3: 14900500 | H3: 25046700 | I3: -10146200
B4: 1 | C4: 13 | D4: 1305 | E4: 1305 | F4: NACIONALES | G4: 173344182 | H4: 6008000 | I4: 167336182
B5: 1 | C5: 13 | D5: 1355 | E5: 1355 | F5: RENTENCION EN LA FUENTE | G5: 7392898 | H5: 18900 | I5: 7373998
B6: 1 | C6: 14 | D6: 1435 | E6: 1435 | F6: MERCANCIAS | G6: 6952400 | H6: 9018325 | I6: -2065925
B7: 1 | C7: 15 | D7: 1504 | E7: 1504 | F7: TERRENOS URBANOS | G7: 12542600 | H7: 0 | I7: 12542600
B8: 1 | C8: 15 | D8: 1516 | E8: 1516 | F8: EDIFICIOS | G8: 45000000 | H8: 0 | I8: 45000000
B9: 1 | C9: 15 | D9: 1524 | E9: 1524 | F9: MUEBLES Y ENSERES | G9: 18600000 | H9: 0 | I9: 18600000
B10: 1 | C10: 15 | D10: 1528 | E10: 1528 | F10: EQUIPO DE COMPUTO | G10: 15660000 | H10: 0 | I10: 15660000
B11: 1 | C11: 15 | D11: 1540 | E11: 1540 | F11: AUTOS Y CAMIONETAS | G11: 24000000 | H11: 0 | I11: 24000000
B12: 1 | C12: 15 | D12: 1592 | E12: 1592 | F12: DEPRECIACION ACUMULADA | G12: 0 | H12: 1003500 | I12: -1003500
B13: 1 | C13: 17 | D13: 1705 | E13: 1705 | F13: COSTOS PAGADOS ANTICIPADO | G13: 5011200 | H13: 250560 | I13: 4760640
B14: 1 | C14: 17 | D14: 1710 | E14: 1710 | F14: CARGOS DIFERIDOS | G14: 1670400 | H14: 272000 | I14: 1398400
B15: 2 | C15: 21 | D15: 2105 | E15: 2105 | F15: PROVEDORES | G15: 0 | H15: 45000000 | I15: -45000000
B16: 2 | C16: 22 | D16: 2205 | E16: 2205 | F16: NACIONALES | G16: 3109750 | H16: 22686750 | I16: -19577000
B17: 2 | C17: 23 | D17: 2335 | E17: 2335 | F17: COSTOS PRO PAGAR | G17: 0 | H17: 2172360 | I17: -2172360
B18: 2 | C18: 23 | D18: 2365 | E18: 2365 | F18: COMPRAS | G18: 18970 | H18: 1845674 | I18: -1826704
B19: 2 | C19: 23 | D19: 2367 | E19: 2367 | F19: IMPUESTO VENTAS RETENIDO | G19: 0 | H19: 126432 | I19: -126432
B20: 2 | C20: 23 | D20: 2380 | E20: 2380 | F20: ACREEDORES VARIOS | G20: 0 | H20: 8100500 | I20: -8100500
B21: 2 | C21: 24 | D21: 2408 | E21: 2408 | F21: IVA | G21: 1429216 | H21: 27908100 | I21: -26478884
B22: 3 | C22: 31 | D22: 3115 | E22: 3115 | F22: APORTES SOCIALES | G22: 0 | H22: 66052000 | I22: -66052000
B23: 3 | C23: 36 | D23: 3605 | E23: 360505 | F23: Utilidad Del Ejercicio | G23: 0 | H23: 123982715 | I23: -123982715
B24: 3 | C24: 37 | D24: 3710 | E24: 3710 | F24: PERDIDA ACUMULADA | G24: 9860400 | H24: 0 | I24: 9860400
B25: 4 | C25: 41 | D25: 4135 | E25: 4135 | F25: COMERCIO >< | G25: 0 | H25: 137505500 | I25: -137505500
B26: 4 | C26: 41 | D26: 4175 | E26: 4175 | F26: DEVOLUCION VENTAS | G26: 540000 | H26: 0 | I26: 540000
B27: 5 | C27: 51 | D27: 5110 | E27: 5110 | F27: HONORARIOS | G27: 1580400 | H27: 0 | I27: 1580400
B28: 5 | C28: 51 | D28: 5130 | E28: 5130 | F28: SEGUROS | G28: 250560 | H28: 0 | I28: 250560
B29: 5 | C29: 51 | D29: 5145 | E29: 5145 | F29: MANTENIMIENTO Y REPARACIONES | G29: 650000 | H29: 0 | I29: 650000
B30: 5 | C30: 51 | D30: 5160 | E30: 5160 | F30: DEPRECIACION | G30: 1003500 | H30: 0 | I30: 1003500
B31: 5 | C31: 51 | D31: 5195 | E31: 5195 | F31: DIVERSOS | G31: 272000 | H31: 0 | I31: 272000
B32: 5 | C32: 53 | D32: 5305 | E32: 5305 | F32: GASTOS FINANCIEROS | G32: 750000 | H32: 0 | I32: 750000
B33: 5 | C33: 59 | D33: 5905 | E33: 590505 | F33: Ganacias Y Perdidas | G33: 0 | H33: 123982715 | I33: -123982715
B34: 6 | C34: 61 | D34: 6135 | E34: 6135 | F34: COMERCIO >< | G34: 8476325 | H34: 0 | I34: 8476325

Sheet Puc (hidden)
A1: Decreto 2650
A2: CODIGO | B2: DESCRIPCION | C2: CLASIFICACION
A3: 1 | B3: ACTIVO | C3: Clase
A4: 11 | B4: DISPONIBLE | C4: Grupo
A5: 1105 | B5: CAJA | C5: Cuenta
A6: 110505 | B6: CAJA GENERAL | C6: Subcuenta
A7: 110510 | B7: CAJAS MENORES | C7: Subcuenta
A8: 110515 | B8: MONEDA EXTRANJERA | C8: Subcuenta
A9: 1110 | B9: BANCOS | C9: Cuenta
A10: 111005 | B10: MONEDA NACIONAL | C10: Subcuenta
A11: 111010 | B11: MONEDA EXTRANJERA | C11: Subcuenta
A12: 1115 | B12: REMESAS EN TRANSITO | C12: Cuenta
A13: 111505 | B13: MONEDA NACIONAL | C13: Subcuenta
A14: 111510 | B14: MONEDA EXTRANJERA | C14: Subcuenta
A15: 1120 | B15: CUENTAS DE AHORRO | C15: Cuenta
A16: 112005 | B16: BANCOS | C16: Subcuenta
A17: 112010 | B17: CORPORACIONES DE AHORRO Y VIVIENDA | C17: Subcuenta
A18: 112015 | B18: ORGANISMOS COOPERATIVOS FINANCIEROS | C18: Subcuenta
A19: 1125 | B19: FONDOS | C19: Cuenta
A20: 112505 | B20: ROTATORIOS MONEDA NACIONAL | C20: Subcuenta
A21: 112510 | B21: ROTATORIOS MONEDA EXTRANJERA | C21: Subcuenta
A22: 112515 | B22: ESPECIALES MONEDA NACIONAL | C22: Subcuenta
A23: 112520 | B23: ESPECIALES MONEDA EXTRANJERA | C23: Subcuenta
A24: 112525 | B24: DE AMORTIZACION MONEDA NACIONAL | C24: Subcuenta
A25: 112530 | B25: DE AMORTIZACION MONEDA EXTRANJERA | C25: Subcuenta
A26: 12 | B26: INVERSIONES | C26: Grupo
A27: 1205 | B27: ACCIONES | C27: Cuenta
A28: 120505 | B28: AGRICULTURA, GANADERIA, CAZA Y SILVICULTURA | C28: Subcuenta
A29: 120510 | B29: PESCA | C29: Subcuenta
A30: 120515 | B30: EXPLOTACION DE MINAS Y CANTERAS | C30: Subcuenta
A31: 120520 | B31: INDUSTRIA MANUFACTURERA | C31: Subcuenta
A32: 120525 | B32: SUMINISTRO DE ELECTRICIDAD, GAS Y AGUA | C32: Subcuenta
A33: 120530 | B33: CONSTRUCCION | C33: Subcuenta
A34: 120535 | B34: COMERCIO AL POR MAYOR Y AL POR MENOR | C34: Subcuenta
A35: 120540 | B35: HOTELES Y RESTAURANTES | C35: Subcuenta
A36: 120545 | B36: TRANSPORTE, ALMACENAMIENTO Y COMUNICACIONES | C36: Subcuenta
A37: 120550 | B37: ACTIVIDAD FINANCIERA | C37: Subcuenta
A38: 120555 | B38: ACTIVIDADES INMOBILIARIAS, EMPRESARIALES Y DE ALQUILER | C38: Subcuenta
A39: 120560 | B39: ENSEÑANZA | C39: Subcuenta
A40: 120565 | B40: SERVICIOS SOCIALES Y DE SALUD | C40: Subcuenta
A41: 120570 | B41: OTRAS ACTIVIDADES DE SERVICIOS COMUNITARIOS, SOCIALES Y PERSONALES | C41: Subcuenta
A42: 120599 | B42: AJUSTES POR INFLACION | C42: Subcuenta
A43: 1210 | B43: CUOTAS O PARTES DE INTERES SOCIAL | C43: Cuenta
A44: 121005 | B44: AGRICULTURA, GANADERIA, CAZA Y SILVICULTURA | C44: Subcuenta
A45: 121010 | B45: PESCA | C45: Subcuenta
A46: 121015 | B46: EXPLOTACION DE MINAS Y CANTERAS | C46: Subcuenta
A47: 121020 | B47: INDUSTRIA MANUFACTURERA | C47: Subcuenta
A48: 121025 | B48: SUMINISTRO DE ELECTRICIDAD, GAS Y AGUA | C48: Subcuenta
A49: 121030 | B49: CONSTRUCCION | C49: Subcuenta
A50: 121035 | B50: COMERCIO AL POR MAYOR Y AL POR MENOR | C50: Subcuenta
A51: 121040 | B51: HOTELES Y RESTAURANTES | C51: Subcuenta
A52: 121045 | B52: TRANSPORTE, ALMACENAMIENTO Y COMUNICACIONES | C52: Subcuenta
A53: 121050 | B53: ACTIVIDAD FINANCIERA | C53: Subcuenta
A54: 121055 | B54: ACTIVIDADES INMOBILIARIAS, EMPRESARIALES Y DE ALQUILER | C54: Subcuenta
A55: 121060 | B55: ENSEÑANZA | C55: Subcuenta
A56: 121065 | B56: SERVICIOS SOCIALES Y DE SALUD | C56: Subcuenta
A57: 121070 | B57: OTRAS ACTIVIDADES DE SERVICIOS COMUNITARIOS, SOCIALES Y PERSONALES | C57: Subcuenta
A58: 121099 | B58: AJUSTES POR INFLACION | C58: Subcuenta
A59: 1215 | B59: BONOS | C59: Cuenta
A60: 121505 | B60: BONOS PUBLICOS MONEDA NACIONAL | C60: Subcuenta
A61: 121510 | B61: BONOS PUBLICOS MONEDA EXTRANJERA | C61: Subcuenta
A62: 121515 | B62: BONOS ORDINARIOS | C62: Subcuenta
A63: 121520 | B63: BONOS CONVERTIBLES EN ACCIONES | C63: Subcuenta
A64: 121595 | B64: OTROS | C64: Subcuenta
A65: 1220 | B65: CEDULAS | C65: Cuenta
A66: 122005 | B66: CEDULAS DE CAPITALIZACION | C66: Subcuenta
A67: 122010 | B67: CEDULAS HIPOTECARIAS | C67: Subcuenta
A68: 122015 | B68: CEDULAS DE INVERSION | C68: Subcuenta
A69: 122095 | B69: OTRAS | C69: Subcuenta
A70: 1225 | B70: CERTIFICADOS | C70: Cuenta
A71: 122505 | B71: CERTIFICADOS DE DEPOSITO A TERMINO (C.D.T.) | C71: Subcuenta
A72: 122510 | B72: CERTIFICADOS DE DEPOSITO DE AHORRO | C72: Subcuenta
A73: 122515 | B73: CERTIFICADOS DE AHORRO DE VALOR CONSTANTE (C.A.V.C.) | C73: Subcuenta
A74: 122520 | B74: CERTIFICADOS DE CAMBIO | C74: Subcuenta
A75: 122525 | B75: CERTIFICADOS CAFETEROS VALORIZABLES | C75: Subcuenta
A76: 122530 | B76: CERTIFICADOS ELECTRICOS VALORIZABLES (C.E.V.) | C76: Subcuenta
A77: 122535 | B77: CERTIFICADOS DE REEMBOLSO TRIBUTARIO (C.E.R.T.) | C77: Subcuenta
A78: 122540 | B78: CERTIFICADOS DE DESARROLLO TURISTICO | C78: Subcuenta
A79: 122545 | B79: CERTIFICADOS DE INVERSION FORESTAL (C.I.F.) | C79: Subcuenta
A80: 122595 | B80: OTROS | C80: Subcuenta
A81: 1230 | B81: PAPELES COMERCIALES | C81: Cuenta
A82: 123005 | B82: EMPRESAS COMERCIALES | C82: Subcuenta
A83: 123010 | B83: EMPRESAS INDUSTRIALES | C83: Subcuenta
A84: 123015 | B84: EMPRESAS DE SERVICIOS | C84: Subcuenta
A85: 1235 | B85: TITULOS | C85: Cuenta
A86: 123505 | B86: TITULOS DE DESARROLLO AGROPECUARIO | C86: Subcuenta
A87: 123510 | B87: TITULOS CANJEABLES POR CERTIFICADOS DE CAMBIO | C87: Subcuenta
A88: 123515 | B88: TITULOS DE TESORERIA (T.E.S.) | C88: Subcuenta
A89: 123520 | B89: TITULOS DE PARTICIPACION | C89: Subcuenta
A90: 123525 | B90: TITULOS DE CREDITO DE FOMENTO | C90: Subcuenta
A91: 123530 | B91: TITULOS FINANCIEROS AGROINDUSTRIALES (T.F.A.) | C91: Subcuenta
A92: 123535 | B92: TITULOS DE AHORRO CAFETERO (T.A.C.) | C92: Subcuenta
A93: 123540 | B93: TITULOS DE AHORRO NACIONAL (T.A.N.) | C93: Subcuenta
A94: 123545 | B94: TITULOS ENERGETICOS DE RENTABILIDAD CRECIENTE (T.E.R.) | C94: Subcuenta
A95: 123550 | B95: TITULOS DE AHORRO EDUCATIVO (T.A.E.) | C95: Subcuenta
A96: 123555 | B96: TITULOS FINANCIEROS INDUSTRIALES Y COMERCIALES | C96: Subcuenta
A97: 123560 | B97: TESOROS | C97: Subcuenta
A98: 123565 | B98: TITULOS DE DEVOLUCION DE IMPUESTOS NACIONALES (TIDIS) | C98: Subcuenta
A99: 123570 | B99: TITULOS INMOBILIARIOS | C99: Subcuenta
A100: 123595 | B100: OTROS | C100: Subcuenta
A101: 1240 | B101: ACEPTACIONES BANCARIAS O FINANCIERAS | C101: Cuenta
A102: 124005 | B102: BANCOS COMERCIALES | C102: Subcuenta
A103: 124010 | B103: COMPAÑIAS DE FINANCIAMIENTO COMERCIAL | C103: Subcuenta
A104: 124015 | B104: CORPORACIONES FINANCIERAS | C104: Subcuenta
A105: 124095 | B105: OTRAS | C105: Subcuenta
A106: 1245 | B106: DERECHOS FIDUCIARIOS | C106: Cuenta
A107: 124505 | B107: FIDEICOMISOS DE INVERSION MONEDA NACIONAL | C107: Subcuenta
A108: 124510 | B108: FIDEICOMISOS DE INVERSION MONEDA EXTRANJERA | C108: Subcuenta
A109: 1250 | B109: DERECHOS DE RECOMPRA DE INVERSIONES NEGOCIADAS (REPOS) | C109: Cuenta
A110: 125005 | B110: ACCIONES | C110: Subcuenta
A111: 125010 | B111: CUOTAS O PARTES DE INTERES SOCIAL | C111: Subcuenta
A112: 125015 | B112: BONOS | C112: Subcuenta
A113: 125020 | B113: CEDULAS | C113: Subcuenta
A114: 125025 | B114: CERTIFICADOS | C114: Subcuenta
A115: 125030 | B115: PAPELES COMERCIALES | C115: Subcuenta
A116: 125035 | B116: TITULOS | C116: Subcuenta
A117: 125040 | B117: ACEPTACIONES BANCARIAS O FINANCIERAS 125095 OTROS | C117: Subcuenta
A118: 125099 | B118: AJUSTES POR INFLACION | C118: Subcuenta
A119: 1255 | B119: OBLIGATORIAS | C119: Cuenta
A120: 125505 | B120: BONOS DE FINANCIAMIENTO ESPECIAL | C120: Subcuenta
A121: 125510 | B121: BONOS DE FINANCIAMIENTO PRESUPUESTAL | C121: Subcuenta
A122: 125515 | B122: BONOS PARA DESARROLLO SOCIAL Y SEGURIDAD INTERNA (B.D.S.I.) | C122: Subcuenta
A123: 125595 | B123: OTRAS | C123: Subcuenta
A124: 1260 | B124: CUENTAS EN PARTICIPACION | C124: Cuenta
A125: 126001 a 126098 | B125: _ | C125: Auxiliar
A126: 126099 | B126: AJUSTES POR INFLACION | C126: Subcuenta
A127: 1295 | B127: OTRAS INVERSIONES | C127: Cuenta
A128: 129505 | B128: APORTES EN COOPERATIVAS | C128: Subcuenta
A129: 129510 | B129: DERECHOS EN CLUBES SOCIALES | C129: Subcuenta
A130: 129515 | B130: ACCIONES O DERECHOS EN CLUBES DEPORTIVOS | C130: Subcuenta
A131: 129520 | B131: BONOS EN COLEGIOS | C131: Subcuenta
A132: 129595 | B132: DIVERSAS | C132: Subcuenta
A133: 129599 | B133: AJUSTES POR INFLACION | C133: Subcuenta
A134: 1299 | B134: PROVISIONES | C134: Cuenta
A135: 129905 | B135: ACCIONES | C135: Subcuenta
A136: 129910 | B136: CUOTAS O PARTES DE INTERES SOCIAL | C136: Subcuenta
A137: 129915 | B137: BONOS | C137: Subcuenta
A138: 129920 | B138: CEDULAS | C138: Subcuenta
A139: 129925 | B139: CERTIFICADOS | C139: Subcuenta
A140: 129930 | B140: PAPELES COMERCIALES | C140: Subcuenta
A141: 129935 | B141: TITULOS | C141: Subcuenta
A142: 129940 | B142: ACEPTACIONES BANCARIAS O FINANCIERAS | C142: Subcuenta
A143: 129945 | B143: DERECHOS FIDUCIARIOS | C143: Subcuenta
A144: 129950 | B144: DERECHOS DE RECOMPRA DE INVERSIONES NEGOCIADAS | C144: Subcuenta
A145: 129955 | B145: OBLIGATORIAS | C145: Subcuenta
A146: 129960 | B146: CUENTAS EN PARTICIPACION | C146: Subcuenta
A147: 129995 | B147: OTRAS INVERSIONES | C147: Subcuenta
A148: 13 | B148: DEUDORES | C148: Grupo
A149: 1305 | B149: CLIENTES | C149: Cuenta
A150: 130505 | B150: NACIONALES | C150: Subcuenta
A151: 130510 | B151: DEL EXTERIOR | C151: Subcuenta
A152: 130515 | B152: DEUDORES DEL SISTEMA | C152: Subcuenta
A153: 1310 | B153: CUENTAS CORRIENTES COMERCIALES | C153: Cuenta
A154: 131005 | B154: CASA MATRIZ | C154: Subcuenta
A155: 131010 | B155: COMPAÑIAS VINCULADAS | C155: Subcuenta
A156: 131015 | B156: ACCIONISTAS O SOCIOS | C156: Subcuenta
A157: 131020 | B157: PARTICULARES | C157: Subcuenta
A158: 131095 | B158: OTRAS | C158: Subcuenta
A159: 1315 | B159: CUENTAS POR COBRAR A CASA MATRIZ | C159: Cuenta
A160: 131505 | B160: VENTAS | C160: Subcuenta
A161: 131510 | B161: PAGOS A NOMBRE DE CASA MATRIZ | C161: Subcuenta
A162: 131515 | B162: VALORES RECIBIDOS POR CASA MATRIZ | C162: Subcuenta
A163: 131520 | B163: PRESTAMOS | C163: Subcuenta
A164: 1320 | B164: CUENTAS POR COBRAR A VINCULADOS ECONOMICOS | C164: Cuenta
A165: 132005 | B165: FILIALES | C165: Subcuenta
A166: 132010 | B166: SUBSIDIARIAS | C166: Subcuenta
A167: 132015 | B167: SUCURSALES | C167: Subcuenta
A168: 1325 | B168: CUENTA S POR COBRAR A SOCIOS Y ACCIONISTAS | C168: Cuenta
A169: 132505 | B169: A SOCIOS | C169: Subcuenta
A170: 132510 | B170: A ACCIONISTAS | C170: Subcuenta
A171: 1328 | B171: APORTES POR COBRAR | C171: Cuenta
A172: 132801 a 132898 | B172: _ | C172: Auxiliar
A173: 1330 | B173: ANTICIPOS Y AVANCES | C173: Cuenta
A174: 133005 | B174: A PROVEEDORES | C174: Subcuenta
A175: 133010 | B175: A CONTRATISTAS | C175: Subcuenta
A176: 133015 | B176: A TRABAJADORES | C176: Subcuenta
A177: 133020 | B177: A AGENTES | C177: Subcuenta
A178: 133025 | B178: A CONCESIONARIOS | C178: Subcuenta
A179: 133030 | B179: DE ADJUDICACIONES | C179: Subcuenta
A180: 133095 | B180: OTROS | C180: Subcuenta
A181: 1332 | B181: CUENTAS DE OPERACION CONJUNTA | C181: Cuenta
A182: 133201 a 133298 | B182: _ | C182: Auxiliar
A183: 1335 | B183: DEPOSITOS | C183: Cuenta
A184: 133505 | B184: PARA IMPORTACIONES | C184: Subcuenta
A185: 133510 | B185: PARA SERVICIOS | C185: Subcuenta
A186: 133515 | B186: PARA CONTRATOS | C186: Subcuenta
A187: 133520 | B187: PARA RESPONSABILIDADES | C187: Subcuenta
A188: 133525 | B188: PARA JUICIOS EJECUTIVOS | C188: Subcuenta
A189: 133530 | B189: PARA ADQUISICION DE ACCIONES, CUOTAS O DERECHOS SOCIALES | C189: Subcuenta
A190: 133535 | B190: EN GARANTIA | C190: Subcuenta
A191: 133595 | B191: OTROS | C191: Subcuenta
A192: 1340 | B192: PROMESAS DE COMPRA VENTA | C192: Cuenta
A193: 134005 | B193: DE BIENES RAICES | C193: Subcuenta
A194: 134010 | B194: DE MAQUINARIA Y EQUIPO | C194: Subcuenta
A195: 134015 | B195: DE FLOTA Y EQUIPO DE TRANSPORTE | C195: Subcuenta
A196: 134020 | B196: DE FLOTA Y EQUIPO AEREO | C196: Subcuenta
A197: 134025 | B197: DE FLOTA Y EQUIPO FERREO | C197: Subcuenta
A198: 134030 | B198: DE FLOTA Y EQUIPO FLUVIAL Y/O MARITIMO | C198: Subcuenta
A199: 134035 | B199: DE SEMOVIENTES | C199: Subcuenta
A200: 134095 | B200: DE OTROS BIENES | C200: Subcuenta
... 2393 more rows

Sheet Ind. Fin. (hidden)
C1: =+UPPER("INDICES Y RAZONES FINANCIERAS - EMPRESA : "&Descripcion!A1) -> INDICES Y RAZONES FINANCIERAS - EMPRESA : EMPRESA PRUEBA 1 S.A.
D3: Indice | F3: Formula | H3: Valores | J3: Resultado | N3: Interpretacion
D6: INDICES DE LIQUIDEZ | N6: =+"INTERPRETACION : "&D6 -> INTERPRETACION : INDICES DE LIQUIDEZ
D8: RAZON CORRIENTE | E8: = | F8: Total Activo Corriente | G8: = | I8: =
F9: Total Pasivo Corriente
D11: PRUEBA ACIDA | E11: = | F11: Activos Corriente - Inventario | G11: = | I11: =
F12: Total Pasivo Corriente
D14: EBITDA | E14: = | F14: Utilidad Operativa + Depreciación + Amortización + Provisiones | G14: = | I14: =
D17: CAPITAL NETO DE TRABAJO | E17: = | F17: Total Activo Corriente -Total Pasivo Corriente | G17: = | I17: =
D22: INDICES DE ACTIVIDAD | N22: =+"INTERPRETACION : "&D22 -> INTERPRETACION : INDICES DE ACTIVIDAD
D24: ROTACION DE CARTERA | E24: = | F24: Ventas A Credito | G24: = | I24: =
F25: Promedio De Ctas Clientes
D27: ROTACION DE INVENTARIOS | E27: = | F27: Costo De Ventas | G27: = | I27: =
F28: Inventario Promedio
D30: ROTACION DE ACTIVOS TOTALES | E30: = | F30: Ingresos Operacionales | G30: = | I30: =
F31: Activo Total
D33: ROTACION PROVEEDORES | E33: = | F33: Promedio De Proveedores X 365 | G33: = | I33: =
F34: Compras A Cred Del Periodo
D39: INDICES DE ENDEUDAMIENTO | N39: =+"INTERPRETACION : "&D39 -> INTERPRETACION : INDICES DE ENDEUDAMIENTO
D41: RAZON DE DEUDA | E41: = | F41: Pasivo Total *100 | G41: = | I41: =
F42: Activo Total
D44: ENDEUDAMIENTO FINANCIERO | E44: = | F44: Obligaciones Financieras X 100 | G44: = | I44: =
F45: Ventas Netas
D47: IMPACTO DE LA CARGA FINANCIERA | E47: = | F47: Gastos Financieros X 100 | G47: = | I47: =
F48: Ventas Netas
D50: RAZON DE COBERTURA DE INTERESES | E50: = | F50: Utilidad De Operación | G50: = | I50: =
F51: Intereses Pagados
D53: ENDEUDAMIENTO A CORTO PLAZO | E53: = | F53: Pasivo Cte X 100 | G53: = | I53: =
F54: Total Pasivo
D56: INDICADORES DE APALANCAMIENTOS | E56: = | F56: Pasivo Total | G56: = | I56: =
F57: Patrimonio
D61: INDICES DE RENTABILIDAD | N61: =+"INTERPRETACION : "&D61 -> INTERPRETACION : INDICES DE RENTABILIDAD
D63: MARGEN DE UTILIDAD BRUTA SOBRE VENTAS | E63: = | F63: Utilidad Bruta X100 | G63: = | I63: =
F64: Ventas Netas
D66: MARGEN OPERACIONAL DE UTILIDAD | E66: = | F66: Utilidad Operacional Del Periodo X 100 | G66: = | I66: =
F67: Ingresos Operacionales
D69: MARGEN NETO DE UTILIDAD | E69: = | F69: Utilidad Neta X 100 | G69: = | I69: =
F70: Ventas Netas
D72: ROA - RENTABILIDAD SOBRE EL ACTIVO TOTAL | E72: = | F72: Utilidad Neta X 100 | G72: = | I72: =
F73: Total Activo
D75: ROE - RENTABILIDAD SOBRE EL PATRIMONIO | E75: = | F75: Utilidad Neta X 100 | G75: = | I75: =
F76: Patrimonio
B80: =+PROPER("Elaborado Por: guillermo herrera muñoz - escuela colombiana de carreras industriales.") -> Elaborado Por: Guillermo Herrera Muñoz - Escuela Colombiana De Carreras Industriales.

Sheet Descripcion (hidden)
A1: EMPRESA PRUEBA 1 S.A. | H1: =+PROPER(Concatenar_Rango_($H$2:$H$40,$G$1)) -> Presentacion Este Libro Genera Los Estados Financieros ( Balance General Y Estado De Resultados ) Junto Con Formatos De Libros Oficiales De Contabilidad, Entre Ellos, Libro Mayor Y De Balances, Libro Diario, Libro Columnario, Libros Auxiliares, Libro De Caja Y Algunos Indices Financieros. Debe Seguir Los Pasos Y/O Recomendaciones Que Se Describen A Continuacion Para Que Los Estados Financieros Y Formatos De Libros Se Generen Correctamente 1. Diligencie Los Datos Del Encabezado, Estos Se Encuentran Ubicados En La Hoja Inicio, La Informacion Alli Registrada, Quedara Como Encabezado De Los Estados Financieros Y De Los Libros Oficiales. 2. Diligencie Datos Y/O Agregue Registros En La Hoja B_Inicial 3. Diligencie Datos Y/O Agregue Registros En La Hoja Movimientos En Cada Una De Las Hojas, El Rotulo De Columna Indicara El Tipo De Dato A Registrar Las Cuentas Utilizadas En Las Hojas Balance Inicial Y Movimientos, Deben Estar En La Hoja Puc, Esto Con El Fin De Generar Y Agrupar Las Cuentas En Cada Uno De Los Formatos 4. Genere Los Estados Financieros Y Libros Oficiales De Contabilidad, Vaya A La Pestaña Excel Contable ( Ubicada En La Cinta De Opciones ) Y De Click En El Boton Generar Formatos Se Generaran Los Siguientes Formatos: - Hoja De Trabajo - Balance General Con Analisis Horizontal - Balance General Con Analisis Vertical - Estado De Resultados - Libro Diario - Libro Columnario - Libro De Caja - Libros Auxiliares - Libro Mayor Y Balances - Hoja De Indices Financieros En La Pestaña Excel Contable Esiten 4 Botones De Comando Los Cuales Tienen Las Siguientes Funciones: 1. Generar Formatos: Genera Los Estados Financieros Y Los Formatos D Elos Libros Auxiliares, Libro Columnario, Libro De Caja, Libro Mayor Y De Balances, Hoja De Trabajo Y Algunos Indices Financieros. 2. Limpiar: Borra Los Formatos Generados Previamente. 3. Actualizar Encabezados: Despues De Haber Generado Los Formatos Podra Actualizar Los Encabezados De Los Mismos, Cambiando La Informacion En La Hoja Inicio. 4. Ayuda: Muestra La Ayuda De Este Formato | I1: =+PROPER(Concatenar_Rango_($I$2:$I$17,$G$1)) -> Presentacion Este Libro Genera Los Estados Financieros ( Balance General Y Estado De Resultados ) Junto Con Formatos De Libros Oficiales De Contabilidad, Entre Ellos, Libro Mayor Y De Balances, Libro Diario, Libro Columnario, Libros Auxiliares, Libro De Caja Y Algunos Indices Financieros. Para Que Las Macros Y Automatizaciones Contenidas En Este Libro Funcionen De Forma Correcta Debe: 1. Este Archivo Debe Guardarse Antes De Ser Utilizado. 2. Debe Tener Instalado Visual Basic Para Aplicaciones. 3. Habilitar Las Macros. Nota: Utilice Las Ayudas Que Se Encuentran Disponibles En La Pestaña " Excel Contable " ( Ubicada En La Cinta De Opciones )
A2: Indice | B2: Valor | C2: redondeado | D2: Descripcion Positiva | E2: Descipcion Negativa | F2: Resultado
A3: RAZON CORRIENTE | B3: =+VLOOKUP(A3,'Ind. Fin.'!D$1:P$65536,7,0) -> 0 | C3: =+IF(TYPE(B3)=16,0,ROUND(B3,2)) -> 0 | D3: =+PROPER("según el analisis realizado a la empresa "&A1&", se puede Determinar Que La entidad Dispone De "&C3 & " Pesos Del Activo Corriente Para Respaldar Cada Peso De Deuda Inferior A Un Año.") -> Según El Analisis Realizado A La Empresa Empresa Prueba 1 S.A., Se Puede Determinar Que La Entidad Dispone De 0 Pesos Del Activo Corriente Para Respaldar Cada Peso De Deuda Inferior A Un Año. | E3: =+PROPER("según el analisis realizado a la empresa "&A1&" se puedo determinar que la entidad no tiene suficiente dinero para respaldar con sus obligaciones a corto plazo, ya que dispone solo de "&C3&" pesos del activo corriente para cumplir con cada peso de deuda inferior a un año.") -> Según El Analisis Realizado A La Empresa Empresa Prueba 1 S.A. Se Puedo Determinar Que La Entidad No Tiene Suficiente Dinero Para Respaldar Con Sus Obligaciones A Corto Plazo, Ya Que Dispone Solo De 0 Pesos Del Activo Corriente Para Cumplir Con Cada Peso De Deuda Inferior A Un Año. | F3: =+PROPER(IF(TYPE(C3)=16,"",IF(C3<1,E3,D3))) -> Según El Analisis Realizado A La Empresa Empresa Prueba 1 S.A. Se Puedo Determinar Que La Entidad No Tiene Suficiente Dinero Para Respaldar Con Sus Obligaciones A Corto Plazo, Ya Que Dispone Solo De 0 Pesos Del Activo Corriente Para Cumplir Con Cada Peso De Deuda Inferior A Un Año. | H3: PRESENTACION | I3: PRESENTACION
A4: PRUEBA ACIDA | B4: =+VLOOKUP(A4,'Ind. Fin.'!D$1:P$65536,7,0) -> 0 | C4: =+IF(TYPE(B4)=16,0,ROUND(B4,2)) -> 0 | D4: =+PROPER("Según El Analisis Realizado A La Empresa "&A1 &" , Se Pudo Determinar Que La entidad Dispone De $ "&C4&" Pesos Para Cumplir Con Sus Obligaciones A Corto Plazo, Sin Tener Que Recurrir A Sus Inventarios") -> Según El Analisis Realizado A La Empresa Empresa Prueba 1 S.A. , Se Pudo Determinar Que La Entidad Dispone De $ 0 Pesos Para Cumplir Con Sus Obligaciones A Corto Plazo, Sin Tener Que Recurrir A Sus Inventarios | F4: =+PROPER(IF(TYPE(C4)=16,"",D4)) -> Según El Analisis Realizado A La Empresa Empresa Prueba 1 S.A. , Se Pudo Determinar Que La Entidad Dispone De $ 0 Pesos Para Cumplir Con Sus Obligaciones A Corto Plazo, Sin Tener Que Recurrir A Sus Inventarios
A5: EBITDA | B5: =+VLOOKUP(A5,'Ind. Fin.'!D$1:P$65536,7,0) -> 0 | H5: ESTE LIBRO GENERA LOS ESTADOS FINANCIEROS ( BALANCE GENERAL Y ESTADO DE RESULTADOS ) JUNTO CON FORMATOS DE LIBROS OFICIALES DE CONTABILIDAD, ENTRE ELLOS, LIBRO MAYOR Y DE BALANCES, LIBRO DIARIO, LIBRO COLUMNARIO, LIBROS AUXILIARES, LIBRO DE CAJA Y ALGUNOS INDICES FINANCIEROS. | I5: ESTE LIBRO GENERA LOS ESTADOS FINANCIEROS ( BALANCE GENERAL Y ESTADO DE RESULTADOS ) JUNTO CON FORMATOS DE LIBROS OFICIALES DE CONTABILIDAD, ENTRE ELLOS, LIBRO MAYOR Y DE BALANCES, LIBRO DIARIO, LIBRO COLUMNARIO, LIBROS AUXILIARES, LIBRO DE CAJA Y ALGUNOS INDICES FINANCIEROS.
A6: CAPITAL NETO DE TRABAJO | B6: =+VLOOKUP(A6,'Ind. Fin.'!D$1:P$65536,7,0) -> 0 | C6: =+IF(TYPE(B6)=16,0,ROUND(B6,2)) -> 0 | D6: =+"Según El Analisis Realizado A La Empresa "&A1&", Se Pudo Determinar Que La ENTIDAD Cuenta Con Un Capital Neto De Trabajo De "&C6&" El Cual Le Permite Pagar Sus Gastos Operativos Anuales Y Cubrir Los Valores De Las Obligaciones A Corto Plazo." -> Según El Analisis Realizado A La Empresa EMPRESA PRUEBA 1 S.A., Se Pudo Determinar Que La ENTIDAD Cuenta Con Un Capital Neto De Trabajo De 0 El Cual Le Permite Pagar Sus Gastos Operativos Anuales Y Cubrir Los Valores De Las Obligaciones A Corto Plazo. | E6: =+"Según El Analisis Realizado A La Empresa "&A1 &", Se Pudo Determinar Que La ENTIDAD No Dispone De Suficientes Recusos, Ya Que Cuenta Con Un Capital Neto De Trabajo De "&C6&" El Cual No Le Permite Pagar Sus Gastos Operativos Anuales, Ni Cubrir Los Valores De Las Obligaciones A Corto Plazo."&" Se Puede Ver Una Deficiencia Total En Sus Activos Corientes Lo Cual Obviamente No Es Atractivo Para Los Potenciales Accionistas O Inversores." -> Según El Analisis Realizado A La Empresa EMPRESA PRUEBA 1 S.A., Se Pudo Determinar Que La ENTIDAD No Dispone De Suficientes Recusos, Ya Que Cuenta Con Un Capital Neto De Trabajo De 0 El Cual No Le Permite Pagar Sus Gastos Operativos Anuales, Ni Cubrir Los Valores De Las Obligaciones A Corto Plazo. Se Puede Ver Una Deficiencia Total En Sus Activos Corientes Lo Cual Obviamente No Es Atractivo Para Los Potenciales Accionistas O Inversores. | F6: =+PROPER(IF(TYPE(C6)=16,"",IF(C6<0,E6,D6))) -> Según El Analisis Realizado A La Empresa Empresa Prueba 1 S.A., Se Pudo Determinar Que La Entidad Cuenta Con Un Capital Neto De Trabajo De 0 El Cual Le Permite Pagar Sus Gastos Operativos Anuales Y Cubrir Los Valores De Las Obligaciones A Corto Plazo.
H7: DEBE SEGUIR LOS PASOS Y/O RECOMENDACIONES QUE SE DESCRIBEN A CONTINUACION PARA QUE LOS ESTADOS FINANCIEROS Y FORMATOS DE LIBROS SE GENEREN CORRECTAMENTE | I7: PARA QUE LAS MACROS Y AUTOMATIZACIONES CONTENIDAS EN ESTE LIBRO FUNCIONEN DE FORMA CORRECTA DEBE:
A8: ROTACION DE CARTERA | B8: =+VLOOKUP(A8,'Ind. Fin.'!D$1:P$65536,7,0) -> 0 | C8: =+IF(TYPE(B8)=16,0,ROUND(B8,2)) -> 0 | D8: =+"SEGÚN EL ANALISIS REALIZADO A LA EMPRESA "&A1&", SE PUDO DETERMINAR QUE LA EMPRESA convierte "&C8&" veces sus cuentas por cobrar o clientes en efectivo, ES DECIR CADA "&ROUND(360/C8,2)&" DIAS LA EMPRESA CONVIERTE SUS CUENTAS POR COBRAR EN EFECTIVO." ->  | F8: =+PROPER(IF(TYPE(C8)=16,"",D8)) -> 
A9: ROTACION DE INVENTARIOS | B9: =+VLOOKUP(A9,'Ind. Fin.'!D$1:P$65536,7,0) -> 0 | C9: =+IF(TYPE(B9)=16,0,ROUND(B9,2)) -> 0 | D9: =+"SEGÚN EL ANALISIS REALIZADO A LA EMPRESA "&A1&" SE PUDO DETERMINAR QUE LA EMPRESA tiene una rotacio de inventario de "&C9&" veces en el año"&" - ES DECIR LAS MERCANCIAS PERMANECEN "&ROUND(360/C9,3)&" DIAS EN PODER DE LA EMPRESA, ANTES DE QUE SE CONVIERTAN EN EFECTIVO O CUENTAS POR COBRAR." ->  | F9: =+PROPER(IF(TYPE(C9)=16,"",D9)) ->  | H9: 1. DILIGENCIE LOS DATOS DEL ENCABEZADO, ESTOS SE ENCUENTRAN UBICADOS EN LA HOJA INICIO, LA INFORMACION ALLI REGISTRADA, QUEDARA COMO ENCABEZADO DE LOS ESTADOS FINANCIEROS Y DE LOS LIBROS OFICIALES. | I9: =+PROPER("1. este archivo debe guardarse antes de ser utilizado.") -> 1. Este Archivo Debe Guardarse Antes De Ser Utilizado.
A10: ROTACION DE ACTIVOS TOTALES | B10: =+VLOOKUP(A10,'Ind. Fin.'!D$1:P$65536,7,0) -> 0 | C10: =+IF(TYPE(B10)=16,0,ROUND(B10,2)) -> 0 | D10: =+"SEGÚN EL ANALISIS REALIZADO A LA EMPRESA "&A1&" SE PUDO DETERMINAR QUE los INGRESOS OPERACIONALES de la empresa CUBREN "&C10&" veces LOS ACTIVOS TOTALES DE LA MISMA." -> SEGÚN EL ANALISIS REALIZADO A LA EMPRESA EMPRESA PRUEBA 1 S.A. SE PUDO DETERMINAR QUE los INGRESOS OPERACIONALES de la empresa CUBREN 0 veces LOS ACTIVOS TOTALES DE LA MISMA. | F10: =+PROPER(IF(TYPE(C10)=16,"",D10)) -> Según El Analisis Realizado A La Empresa Empresa Prueba 1 S.A. Se Pudo Determinar Que Los Ingresos Operacionales De La Empresa Cubren 0 Veces Los Activos Totales De La Misma.
A11: ROTACION PROVEEDORES | B11: =+VLOOKUP(A11,'Ind. Fin.'!D$1:P$65536,7,0) -> 0 | C11: =+IF(TYPE(B11)=16,0,ROUND(B11,2)) -> 0 | D11: =+"SEGÚN EL ANALISIS REALIZADO A LA EMPRESA "&A1&", SE PUDO DETERMINAR QUE LA EMPRESA cancela CADA "&C11&" DIAS, las cuentas por pagar a proveedores utilizando recursos iliquidos de la misma. ES DECIR "&ROUND(365/C11,3)&" VECES AL AÑO, PAGA SUS CUENTAS PAGAR A LOS PROVEEDORES." ->  | F11: =+PROPER(IF(TYPE(C11)=16,"",D11)) ->  | H11: 2. Diligencie datos y/o agregue registros en la hoja B_INICIAL | I11: =+PROPER("2. DEBE TENER INSTALADO VISUAL BASIC PARA APLiCACIONES.") -> 2. Debe Tener Instalado Visual Basic Para Aplicaciones.
A13: RAZON DE DEUDA | B13: =+VLOOKUP(A13,'Ind. Fin.'!D$1:P$65536,7,0) -> 0 | C13: =+IF(TYPE(B13)=16,0,ROUND(B13,2)) -> 0 | D13: ="SEGÚN EL ANALISIS REALIZADO A LA EMPRESA "&A1&" SE PUDO DETERMINAR QUE LA EMPRESA tiene sus activos financiados en un "&C13&"% . O en otras palabras el "&C13&"% de los activos esta en manos de los acredores o terceros y tan solo el "&(100-C13)&"% de esos activos le pertenece verdaderamente a la compañia." -> SEGÚN EL ANALISIS REALIZADO A LA EMPRESA EMPRESA PRUEBA 1 S.A. SE PUDO DETERMINAR QUE LA EMPRESA tiene sus activos financiados en un 0% . O en otras palabras el 0% de los activos esta en manos de los acredores o terceros y tan solo el 100% de esos activos le pertenece verdaderamente a la compañia. | F13: =+PROPER(IF(TYPE(C13)=16,"",D13)) -> Según El Analisis Realizado A La Empresa Empresa Prueba 1 S.A. Se Pudo Determinar Que La Empresa Tiene Sus Activos Financiados En Un 0% . O En Otras Palabras El 0% De Los Activos Esta En Manos De Los Acredores O Terceros Y Tan Solo El 100% De Esos Activos Le Pertenece Verdaderamente A La Compañia. | H13: 3. Diligencie datos y/o agregue registros en la hoja movimientos | I13: =+PROPER("3. HABILITAR LAS MACROS.") -> 3. Habilitar Las Macros.
A14: ENDEUDAMIENTO FINANCIERO | B14: =+VLOOKUP(A14,'Ind. Fin.'!D$1:P$65536,7,0) -> 0 | C14: 0 | D14: =+"SEGÚN EL ANALISIS REALIZADO A LA EMPRESA "&A1&", SE PUDO DETERMINAR QUE LAS OBLIGACIONES FInANCIERAS PARTICIPAN EN UN "&C14&"% DEL TOTAL DE SUS VENTAS." -> SEGÚN EL ANALISIS REALIZADO A LA EMPRESA EMPRESA PRUEBA 1 S.A., SE PUDO DETERMINAR QUE LAS OBLIGACIONES FInANCIERAS PARTICIPAN EN UN 0% DEL TOTAL DE SUS VENTAS. | F14: Según El Analisis Realizado A La Empresa Empresa Prueba 1 S.A., Se Pudo Determinar Que Las Obligaciones Financieras Participan En Un 0% Del Total De Sus Ventas. | H14: en cada una de las hojas, el rotulo de columna indicara el tipo de dato a registrar
A15: IMPACTO DE LA CARGA FINANCIERA | B15: =+VLOOKUP(A15,'Ind. Fin.'!D$1:P$65536,7,0) -> 0 | C15: 0 | D15: =+"SEGÚN EL ANALISIS REALIZADO A LA EMPRESA "&A1&", SE PUDO DETERMINAR QUE LOS GASTOS FINANCIEROS REPRESENTAN UN "&C15&"% DEL TOTAL DE LAS VENTAS. ESTE INDICE BRINDA A LAS ENTIDADES FINANCIERAS LA SEGURIDAD EN EL CUBRIMIENTO DE LA CARGA FINANCIERA POR INTERESES." -> SEGÚN EL ANALISIS REALIZADO A LA EMPRESA EMPRESA PRUEBA 1 S.A., SE PUDO DETERMINAR QUE LOS GASTOS FINANCIEROS REPRESENTAN UN 0% DEL TOTAL DE LAS VENTAS. ESTE INDICE BRINDA A LAS ENTIDADES FINANCIERAS LA SEGURIDAD EN EL CUBRIMIENTO DE LA CARGA FINANCIERA POR INTERESES. | F15: Según El Analisis Realizado A La Empresa Empresa Prueba 1 S.A., Se Pudo Determinar Que Los Gastos Financieros Representan Un 0% Del Total De Las Ventas. Este Indice Brinda A Las Entidades Financieras La Seguridad En El Cubrimiento De La Carga Financiera Por Intereses. | H15: LAS CUENTAS UTILIZADAS EN LAS HOJAS BALANCE INICIAL Y MOVIMIENTOS, DEBEN ESTAR EN LA HOJA PUC, ESTO CON EL FIN DE GENERAR Y AGRUPAR LAS CUENTAS EN CADA UNO DE LOS FORMATOS | I15: NOTA: UTILICE LAS AYUDAS QUE SE ENCUENTRAN DISPONIBLES EN LA PESTAÑA " Excel contable " ( ubicada en la cinta de opciones )
A16: RAZON DE COBERTURA DE INTERESES | B16: =+VLOOKUP(A16,'Ind. Fin.'!D$1:P$65536,7,0) -> 0 | C16: 0 | D16: =+"SEGÚN EL ANALISIS REALIZADO A LA EMPRESA "&A1&" SE PUDO DETERMINAR QUE LA COMPAÑÍA GENERA UTILIDADES DE "&C16&" VECES EL VALOR PAGADO POR INTERESES, DE LO CUAL SE PUEDE MENCIONAR QUE"&IF(C16<1," LA ORGANIZACION NO PUEDE GENERAR SUFICIENTES UTILIDADES O EXCEDENTES PARA PAGAR SUS INTERESES."," LA COMPAÑIA ESTA EN LA CAPACIDAD DE CUBRIR LOS INTERESES GRACIAS A LA UTILIDAD GENERADA.") -> SEGÚN EL ANALISIS REALIZADO A LA EMPRESA EMPRESA PRUEBA 1 S.A. SE PUDO DETERMINAR QUE LA COMPAÑÍA GENERA UTILIDADES DE 0 VECES EL VALOR PAGADO POR INTERESES, DE LO CUAL SE PUEDE MENCIONAR QUE LA ORGANIZACION NO PUEDE GENERAR SUFICIENTES UTILIDADES O EXCEDENTES PARA PAGAR SUS INTERESES. | F16: Según El Analisis Realizado A La Empresa Empresa Prueba 1 S.A. Se Pudo Determinar Que La Compañía Genera Utilidades De 0 Veces El Valor Pagado Por Intereses, De Lo Cual Se Puede Mencionar Que La Organizacion No Puede Generar Suficientes Utilidades O Excedentes Para Pagar Sus Intereses.
A17: ENDEUDAMIENTO A CORTO PLAZO | B17: =+VLOOKUP(A17,'Ind. Fin.'!D$1:P$65536,7,0) -> 0 | C17: 0 | D17: =+"SEGÚN EL ANALISIS REALIZADO A LA EMPRESA "&A1&", SE PUDO DETERMINAR QUE DEL TOTAL DE LOS ACTIVOS DE LA EMPESA, UN "&C17&"% ESTA REPRESENTADO EN PASIVOS QUE SE DEBEN PAGAR ANTES DE UN AÑO O TIENEN VENCIMIENTO EN EL CORTO PLAZO. " -> SEGÚN EL ANALISIS REALIZADO A LA EMPRESA EMPRESA PRUEBA 1 S.A., SE PUDO DETERMINAR QUE DEL TOTAL DE LOS ACTIVOS DE LA EMPESA, UN 0% ESTA REPRESENTADO EN PASIVOS QUE SE DEBEN PAGAR ANTES DE UN AÑO O TIENEN VENCIMIENTO EN EL CORTO PLAZO. | F17: Según El Analisis Realizado A La Empresa Empresa Prueba 1 S.A., Se Pudo Determinar Que Del Total De Los Activos De La Empesa, Un 0% Esta Representado En Pasivos Que Se Deben Pagar Antes De Un Año O Tienen Vencimiento En El Corto Plazo. | H17: 4. Genere los estados financieros y libros oficiales de contabilidad, vaya a la pestaña EXCEL CONTABLE ( UBICADA EN LA CINTA DE OPCIONES ) Y DE CLICK EN EL BOTON GENERAR FORMATOS
A18: INDICADORES DE APALANCAMIENTOS | B18: =+VLOOKUP(A18,'Ind. Fin.'!D$1:P$65536,7,0) -> 0 | C18: 0 | D18: =+"SEGÚN EL ANALISIS REALIZADO A LA EMPRESA "&A1&", SE PUDO DETERMINAR QUE LA LA COMPAÑÍA CUENTA CON "&C18&" CENTAVOS DE DEUDA POR CADA PESO DE PATRIMONIO." -> SEGÚN EL ANALISIS REALIZADO A LA EMPRESA EMPRESA PRUEBA 1 S.A., SE PUDO DETERMINAR QUE LA LA COMPAÑÍA CUENTA CON 0 CENTAVOS DE DEUDA POR CADA PESO DE PATRIMONIO. | F18: Según El Analisis Realizado A La Empresa Empresa Prueba 1 S.A., Se Pudo Determinar Que La La Compañía Cuenta Con 0 Centavos De Deuda Por Cada Peso De Patrimonio.
H19: SE GENERARAN LOS SIGUIENTES FORMATOS:
A20: MARGEN DE UTILIDAD BRUTA SOBRE VENTAS | B20: =+VLOOKUP(A20,'Ind. Fin.'!D$1:P$65536,7,0) -> 0 | C20: =+IF(TYPE(B20)=16,0,ROUND(B20,2)) -> 0 | D20: =+"SEGÚN EL ANALISIS REALIZADO A LA EMPRESA "&A1&", SE PUDO DETERMINAR QUE LAS VENTAS DE LA COMPAÑÍA GENERAN UN " &C20&"% DE UTILIDAD BRUTA." -> SEGÚN EL ANALISIS REALIZADO A LA EMPRESA EMPRESA PRUEBA 1 S.A., SE PUDO DETERMINAR QUE LAS VENTAS DE LA COMPAÑÍA GENERAN UN 0% DE UTILIDAD BRUTA. | F20: =+PROPER(IF(TYPE(C20)=16,"",D20)) -> Según El Analisis Realizado A La Empresa Empresa Prueba 1 S.A., Se Pudo Determinar Que Las Ventas De La Compañía Generan Un 0% De Utilidad Bruta. | H20: - HOJA DE TRABAJO
A21: MARGEN OPERACIONAL DE UTILIDAD | B21: =+VLOOKUP(A21,'Ind. Fin.'!D$1:P$65536,7,0) -> 0 | C21: =+IF(TYPE(B21)=16,0,ROUND(B21,2)) -> 0 | D21: =+"SEGÚN EL ANALISIS REALIZADO A LA EMPRESA "&A1&", SE PUDO DETERMINAR POR CADA PESO VENDIDO EN EL ULTIMO AÑO, SE LOGRO OBTENER "&C21&" CENTAVOS DE UTILIDAD OPERACIONAL" -> SEGÚN EL ANALISIS REALIZADO A LA EMPRESA EMPRESA PRUEBA 1 S.A., SE PUDO DETERMINAR POR CADA PESO VENDIDO EN EL ULTIMO AÑO, SE LOGRO OBTENER 0 CENTAVOS DE UTILIDAD OPERACIONAL | F21: =+PROPER(IF(TYPE(C21)=16,"",D21)) -> Según El Analisis Realizado A La Empresa Empresa Prueba 1 S.A., Se Pudo Determinar Por Cada Peso Vendido En El Ultimo Año, Se Logro Obtener 0 Centavos De Utilidad Operacional | H21: - BALANCE GENERAL CON ANALISIS HORIZONTAL
A22: MARGEN NETO DE UTILIDAD | B22: =+VLOOKUP(A22,'Ind. Fin.'!D$1:P$65536,7,0) -> 0 | C22: =+IF(TYPE(B22)=16,0,ROUND(B22,2)) -> 0 | D22: =+"SEGÚN EL ANALISIS REALIZADO A LA EMPRESA "&A1&", SE PUDO DETERMINAR QUE POR CADA PESO VENDIDO SE GENERÓ"&C22&" CENTAVOS DE UTILIDAD NETA, LOS RESULTADOS DEMUESTAN QUE EL NEGOCIO NO HA SIDO MUY LUCRATIVO" -> SEGÚN EL ANALISIS REALIZADO A LA EMPRESA EMPRESA PRUEBA 1 S.A., SE PUDO DETERMINAR QUE POR CADA PESO VENDIDO SE GENERÓ0 CENTAVOS DE UTILIDAD NETA, LOS RESULTADOS DEMUESTAN QUE EL NEGOCIO NO HA SIDO MUY LUCRATIVO | F22: =+PROPER(IF(TYPE(C22)=16,"",D22)) -> Según El Analisis Realizado A La Empresa Empresa Prueba 1 S.A., Se Pudo Determinar Que Por Cada Peso Vendido Se Generó0 Centavos De Utilidad Neta, Los Resultados Demuestan Que El Negocio No Ha Sido Muy Lucrativo | H22: - BALANCE GENERAL CON ANALISIS VERTICAL
A23: ROA - RENTABILIDAD SOBRE EL ACTIVO TOTAL | B23: =+VLOOKUP(A23,'Ind. Fin.'!D$1:P$65536,7,0) -> 0 | C23: =+IF(TYPE(B23)=16,0,ROUND(B23,2)) -> 0 | D23: =+"SEGÚN EL ANALISIS REALIZADO A LA EMPRESA "&A1&", SE PUDO DETERMINAR QUE el ROA ( Return on Assets ) es igual aL "&C23&"%, es decir,"&" la empresa tiene una rentabilidad del "&C23&"% con respecto a los activos que posee. O, en otras palabras, la empresa utiliza el "&C23&"% del total de sus activos en la generación de utilidades." -> SEGÚN EL ANALISIS REALIZADO A LA EMPRESA EMPRESA PRUEBA 1 S.A., SE PUDO DETERMINAR QUE el ROA ( Return on Assets ) es igual aL 0%, es decir, la empresa tiene una rentabilidad del 0% con respecto a los activos que posee. O, en otras palabras, la empresa utiliza el 0% del total de sus activos en la generación de utilidades. | F23: =+PROPER(IF(TYPE(C23)=16,"",D23)) -> Según El Analisis Realizado A La Empresa Empresa Prueba 1 S.A., Se Pudo Determinar Que El Roa ( Return On Assets ) Es Igual Al 0%, Es Decir, La Empresa Tiene Una Rentabilidad Del 0% Con Respecto A Los Activos Que Posee. O, En Otras Palabras, La Empresa Utiliza El 0% Del Total De Sus Activos En La Generación De Utilidades. | H23: - ESTADO DE RESULTADOS
A24: ROE - RENTABILIDAD SOBRE EL PATRIMONIO | B24: =+VLOOKUP(A24,'Ind. Fin.'!D$1:P$65536,7,0) -> 0 | C24: =+IF(TYPE(B24)=16,0,ROUND(B24,2)) -> 0 | D24: =+"SEGÚN EL ANALISIS REALIZADO A LA EMPRESA "&A1&", SE PUDO DETERMINAR QUE EL ROE ( Return on Equity ) ES de "&C24&"%, es decir, la empresa tiene una rentabilidad del "&C24&"% con respecto al patrimonio que posee. O, en otras palabras, la empresa utiliza el "&C24&"% de su patrimonio en la generación de utilidades." -> SEGÚN EL ANALISIS REALIZADO A LA EMPRESA EMPRESA PRUEBA 1 S.A., SE PUDO DETERMINAR QUE EL ROE ( Return on Equity ) ES de 0%, es decir, la empresa tiene una rentabilidad del 0% con respecto al patrimonio que posee. O, en otras palabras, la empresa utiliza el 0% de su patrimonio en la generación de utilidades. | F24: =+PROPER(IF(TYPE(C24)=16,"",D24)) -> Según El Analisis Realizado A La Empresa Empresa Prueba 1 S.A., Se Pudo Determinar Que El Roe ( Return On Equity ) Es De 0%, Es Decir, La Empresa Tiene Una Rentabilidad Del 0% Con Respecto Al Patrimonio Que Posee. O, En Otras Palabras, La Empresa Utiliza El 0% De Su Patrimonio En La Generación De Utilidades. | H24: - LIBRO DIARIO
H25: - LIBRO COLUMNARIO
H26: - LIBRO DE CAJA
H27: - LIBROS AUXILIARES
H28: - LIBRO MAYOR Y BALANCES
H29: - HOJA DE INDICES FINANCIEROS
H31: en la pestaña excel contable esiten 4 botones de comando los cuales tienen las siguientes funciones:
H33: 1. Generar formatos: genera los estados financieros y los formatos d elos libros auxiliares, libro columnario, libro de caja, libro mayor y de balances, hoja de trabajo y algunos indices financieros.
H35: 2. Limpiar: borra los formatos generados previamente.
H37: 3. Actualizar encabezados: despues de haber generado los formatos podra actualizar los encabezados de los mismos, cambiando la informacion en la hoja inicio.
H39: 4. ayuda: muestra la ayuda de este formato

Sheet Hoja2 (hidden)
A1: x
A2: x
A3: x
A4: x
A5: x
A6: x
A7: x
A8: x
A9: x
A10: x
A11: x
A12: x
A13: x
A14: x
A15: x
A16: x
A17: x
A18: x
A19: x
A20: x
A21: x
A22: x
A23: x
A24: x
A25: x
A26: x
A27: x
A28: x
A29: x
A30: x
A31: x
A32: x
A33: x
A34: x
A35: x
A36: x
A37: x
A38: x
A39: x
A40: x
A41: x
A42: x
A43: x
A44: x
A45: x
A46: x
A47: x
A48: x
A49: x
A50: x
A51: x
A52: x
A53: x
A54: x
A55: x
A56: x
A57: x
A58: x
A59: x
A60: x
A61: x
A62: x
A63: x
A64: x
A65: x
A66: x
A67: x
A68: x
A69: x
A70: x
A71: x
A72: x
A73: x
A74: x
A75: x
A76: x
A77: x
A78: x
A79: x
A80: x
A81: x
A82: x
A83: x
A84: x
A85: x
A86: x
A87: x
A88: x
A89: x
A90: x
A91: x
A92: x
A93: x
A94: x
A95: x
A96: x
A97: x
A98: x
A99: x
A100: x
A101: x
A102: x
A103: x
A104: x
A105: x
A106: x
A107: x
A108: x
A109: x
A110: x
A111: x
A112: x
A113: x
A114: x
A115: x
A116: x
A117: x
A118: x
A119: x
A120: x
A121: x
A122: x
A123: x
A124: x
A125: x
A126: x
A127: x
A128: x
A129: x
A130: x
A131: x
A132: x
A133: x
A134: x
A135: x
A136: x
A137: x
A138: x
A139: x
A140: x
A141: x
A142: x
A143: x
A144: x
A145: x
A146: x
A147: x
A148: x
A149: x
A150: x
A151: x
A152: x
A153: x
A154: x
A155: x
A156: x
A157: x
A158: x
A159: x
A160: x
A161: x
A162: x
A163: x
A164: x
A165: x
A166: x
A167: x
A168: x
A169: x
A170: x
A171: x
A172: x
A173: x
A174: x
A175: x
A176: x
A177: x
A178: x
A179: x
A180: x
A181: x
A182: x
A183: x
A184: x
A185: x
A186: x
A187: x
A188: x
A189: x
A190: x
A191: x
A192: x
A193: x
A194: x
A195: x
A196: x
A197: x
A198: x
A199: x
A200: x
... 65337 more rows
